[Event "WYCC 2018 G18"]
[Site "Halkidiki"]
[Date "2018.10.27"]
[Round "8"]
[White "Di Benedetto, Desiree"]
[Black "Zairbek kyzy, Begimay"]
[Result "1-0"]
[ECO "D37"]
[WhiteElo "2321"]
[BlackElo "1919"]
[Annotator "NA"]
[PlyCount "99"]
[EventDate "2018.10.20"]
[EventType "swiss"]
[EventCountry "GRE"]
[SourceTitle "playchess.com"]
[Source "ChessBase"]
[SourceQuality "1"]
[TimeControl "40/5400+30:1800+30"]

1. d4 {[%emt 0:00:00]} d5 {[%emt 0:00:00]} 2. c4 {[%emt 0:00:00]} e6 {[%emt 0:00:00]} 3. Nc3 {[%emt 0:00:00]} Nf6 {[%emt 0:00:00]} 4. Nf3 {[%emt 0:00:01]} Be7 {[%emt 0:00:00]} 5. Bf4 {[%emt 0:00:13]} O-O {[%emt 0:00:53]} 6. e3 {[%emt 0:00:12]} c5 {[%emt 0:02:00]} 7. dxc5 {[%emt 0:01:17]} Bxc5 {[%emt 0:01:59]} 8. a3 {[%emt 0:01:46]} a5 {[%emt 0:03:04] LiveBook: 3 Games} (8... Nc6 $11 {keeps the balance.}) 9. cxd5 {[%emt 0:01:14]} exd5 {[%emt 0:00:19]} 10. Rc1 {[%emt 0:02:46]} Nc6 {[%emt 0:05:45]} 11. Nb5 {[%emt 0:10:10]} Bb6 {[%emt 0:02:08]} 12. Be2 {[%emt 0:01:59]} Ne4 {[%emt 0:10:27]} 13. O-O {[%emt 0:07:29]} Be6 $14 {[%emt 0:00:46]} 14. Nfd4 {[%emt 0:03:29]} Nxd4 {[%emt 0:02:51]} 15. Nxd4 {[%emt 0:07:29]} Nd6 {[%emt 0:08:24]} 16. Be5 {[%emt 0:07:49]} Re8 {[%emt 0:05:22]} 17. Nxe6 {[%emt 0:04:16]} fxe6 {[%emt 0:00:46]} 18. Bd3 {[%emt 0:04:03]} Nf7 {[%emt 0:02:32]} 19. Qh5 {[%emt 0:05:22]} h6 {[%emt 0:02:41]} 20. Bg3 {[%emt 0:12:48]} Qf6 {[%emt 0:05:58]} 21. Bg6 {[%emt 0:00:32]} Qe7 {[%emt 0:02:57]} 22. Bxf7+ {[%emt 0:03:07]} Qxf7 {[%emt 0:00:14]} 23. Qe5 {[%emt 0:02:11]} Rec8 {[%emt 0:03:37]} 24. Qd6 {[%emt 0:02:15]} Bd8 {[%emt 0:00:44]} 25. h3 {[%emt 0:02:15]} Qe7 {[%emt 0:02:48]} 26. Qf4 {[%emt 0:02:41]} Rc6 {[%emt 0:00:55]} 27. Rxc6 {[%emt 0:02:04]} bxc6 {[%emt 0:00:08]} 28. b4 {[%emt 0:08:18]} axb4 {[%emt 0:04:51]} 29. axb4 {[%emt 0:00:00]} Bb6 {[%emt 0:08:30]} 30. Rc1 {[%emt 0:03:33]} Rc8 {[%emt 0:03:23]} 31. Qg4 {[%emt 0:00:01]} c5 {[%emt 0:01:48]} 32. bxc5 {[%emt 0:00:11]} Rxc5 {[%emt 0:00:38]} 33. Rb1 {[%emt 0:00:58]} Bc7 {[%emt 0:00:24]} 34. Bxc7 {[%emt 0:01:59]} Rxc7 {[%emt 0:00:09]} 35. g3 {[%emt 0:01:42]} Rc4 {[%emt 0:04:50]} 36. Qg6 {[%emt 0:00:57]} Rc8 {[%emt 0:00:51]} 37. Rb6 {[%emt 0:00:20]} e5 {[%emt 0:03:01]} 38. Re6 {[%emt 0:01:05]} Qa7 {[%emt 0:01:51]} 39. Re8+ {[%emt 0:00:22]} Rxe8 {[%emt 0:00:32]} 40. Qxe8+ {[%emt 0:00:00]} Kh7 {[%emt 0:00:00]} 41. Qxe5 {[%emt 0:00:02]} Qc5 {[%emt 0:01:37]} 42. Kg2 {[%emt 0:04:59]} Qc6 {[%emt 0:00:36]} 43. Qd4 {[%emt 0:00:41]} g5 {[%emt 0:03:34]} 44. g4 {[%emt 0:05:00]} Kg6 {[%emt 0:00:56]} 45. Kg3 {[%emt 0:02:09]} h5 {[%emt 0:02:27]} 46. Qd3+ {[%emt 0:03:13]} Kh6 {[%emt 0:00:32]} 47. gxh5 {[%emt 0:00:09]} Qc7+ {[%emt 0:01:30]} 48. Kg2 {[%emt 0:01:17]} Kxh5 {[%emt 0:03:01]} 49. Qxd5 {[%emt 0:00:08]} Kh6 {[%emt 0:00:39]} 50. Qe6+ {[%emt 0:01:29]} 1-0

[Event "WYCC 2018 G18"]
[Site "Halkidiki"]
[Date "2018.10.27"]
[Round "8"]
[White "Avramidou, Anastasia"]
[Black "Martynkova, Olena"]
[Result "1-0"]
[ECO "E70"]
[WhiteElo "2285"]
[BlackElo "2188"]
[Annotator "NA"]
[PlyCount "103"]
[EventDate "2018.10.20"]
[EventType "swiss"]
[EventCountry "GRE"]
[SourceTitle "playchess.com"]
[Source "ChessBase"]
[SourceQuality "1"]
[TimeControl "40/5400+30:1800+30"]

1. c4 {[%emt 0:00:00]} Nf6 {[%emt 0:00:12]} 2. Nc3 {[%emt 0:00:00]} g6 {[%emt 0:00:40]} 3. d4 {[%emt 0:00:00]} Bg7 {[%emt 0:00:21]} 4. e4 {[%emt 0:00:00]} d6 {[%emt 0:00:24]} 5. Bd3 {[%emt 0:00:02]} O-O {[%emt 0:00:58]} 6. Nge2 {[%emt 0:00:46]} c5 {[%emt 0:01:03]} 7. d5 {[%emt 0:00:06]} e6 {[%emt 0:01:36]} 8. Bg5 {[%emt 0:00:08]} h6 {[%emt 0:04:01]} 9. Bh4 {[%emt 0:00:14]} exd5 {[%emt 0:08:06] LiveBook: 33 Games} 10. exd5 {[%emt 0:01:18]} Nbd7 {[%emt 0:07:17]} 11. f4 {[%emt 0:00:10]} Re8 $14 {[%emt 0:20:20]} 12. O-O {[%emt 0:01:49]} Qb6 {[%emt 0:03:45]} 13. Qd2 {[%emt 0:07:00]} Ng4 {[%emt 0:10:31]} 14. h3 {[%emt 0:09:49]} Ngf6 {[%emt 0:14:01]} 15. Rf3 {[%emt 0:06:14]} Nf8 {[%emt 0:02:56]} 16. Raf1 {[%emt 0:04:35]} Bd7 {[%emt 0:06:01]} 17. g4 {[%emt 0:08:25]} a6 {[%emt 0:06:15]} 18. Kg2 {[%emt 0:16:47]} Qc7 {[%emt 0:02:33]} 19. Bxf6 {[%emt 0:10:48]} Bxf6 {[%emt 0:00:08]} 20. Ne4 {[%emt 0:00:03]} Bg7 {[%emt 0:01:54]} 21. f5 {[%emt 0:00:25]} Nh7 {[%emt 0:04:08]} 22. Qf4 {[%emt 0:10:06]} Rxe4 {[%emt 0:02:24]} 23. Bxe4 {[%emt 0:00:06]} g5 {[%emt 0:00:58]} 24. Qd2 {[%emt 0:00:41]} Nf6 {[%emt 0:00:51]} 25. Bd3 {[%emt 0:01:28]} b5 {[%emt 0:00:31]} 26. b3 {[%emt 0:00:07]} Qd8 {[%emt 0:00:28]} 27. Ng3 {[%emt 0:01:56]} b4 {[%emt 0:00:30]} 28. Nh1 {[%emt 0:03:40]} a5 {[%emt 0:00:32]} 29. Nf2 {[%emt 0:00:40]} a4 {[%emt 0:00:30]} 30. h4 {[%emt 0:00:14]} gxh4 {[%emt 0:00:23]} 31. g5 {[%emt 0:00:38]} hxg5 {[%emt 0:00:12]} 32. Qxg5 {[%emt 0:00:11]} Nh7 {[%emt 0:00:56]} 33. Qxd8+ {[%emt 0:01:05]} Rxd8 {[%emt 0:00:02]} 34. Ne4 {[%emt 0:00:16]} Be5 {[%emt 0:00:58]} 35. Rh1 {[%emt 0:01:00]} Nf6 {[%emt 0:00:31]} 36. Rxh4 {[%emt 0:00:40]} Kf8 {[%emt 0:00:32]} 37. Rh6 {[%emt 0:04:03]} Nxe4 {[%emt 0:00:18]} 38. Bxe4 {[%emt 0:00:07]} Bg7 {[%emt 0:00:40]} 39. Rxd6 {[%emt 0:00:18]} Ke7 {[%emt 0:00:28]} 40. Ra6 {[%emt 0:00:00]} axb3 {[%emt 0:00:00]} 41. axb3 {[%emt 0:00:29]} Bf6 {[%emt 0:01:18]} 42. Bd3 {[%emt 0:05:35]} Rg8+ {[%emt 0:02:41]} 43. Rg3 {[%emt 0:00:06]} Rxg3+ {[%emt 0:02:33]} 44. Kxg3 {[%emt 0:00:04]} Be5+ {[%emt 0:00:56]} 45. Kg4 {[%emt 0:00:08]} f6 {[%emt 0:00:27]} 46. Kh5 {[%emt 0:00:29]} Bd6 {[%emt 0:04:53]} 47. Kg6 {[%emt 0:01:05]} Be5 {[%emt 0:00:26]} 48. Kg7 {[%emt 0:00:08]} Bd4 {[%emt 0:00:57]} 49. d6+ {[%emt 0:01:14]} Kd8 {[%emt 0:00:06]} 50. Be4 {[%emt 0:00:30]} Bc8 {[%emt 0:00:16]} 51. Ra8 {[%emt 0:00:36]} Kd7 {[%emt 0:00:22]} 52. Bd5 {[%emt 0:00:04]} 1-0

[Event "WYCC 2018 G18"]
[Site "Halkidiki"]
[Date "2018.10.27"]
[Round "8"]
[White "Kiolbasa, Oliwia"]
[Black "Garcia Martin, Marta"]
[Result "1/2-1/2"]
[ECO "C92"]
[WhiteElo "2254"]
[BlackElo "2329"]
[Annotator "NA"]
[PlyCount "183"]
[EventDate "2018.10.20"]
[EventType "swiss"]
[EventCountry "GRE"]
[SourceTitle "playchess.com"]
[Source "ChessBase"]
[SourceQuality "1"]
[TimeControl "40/5400+30:1800+30"]

1. e4 {[%emt 0:00:00]} e5 {[%emt 0:00:00]} 2. Nf3 {[%emt 0:00:00]} Nc6 {[%emt 0:00:00]} 3. Bb5 {[%emt 0:00:00]} a6 {[%emt 0:00:00]} 4. Ba4 {[%emt 0:00:01]} Nf6 {[%emt 0:00:00]} 5. O-O {[%emt 0:00:10]} Be7 {[%emt 0:00:08]} 6. Re1 {[%emt 0:00:22]} b5 {[%emt 0:00:16]} 7. Bb3 {[%emt 0:00:08]} d6 {[%emt 0:00:05]} 8. c3 {[%emt 0:00:10]} O-O {[%emt 0:00:06]} 9. h3 {[%emt 0:00:09]} Bb7 {[%emt 0:00:19]} 10. d4 {[%emt 0:00:54]} Nd7 {[%emt 0:00:25]} 11. Nbd2 {[%emt 0:10:44]} exd4 {[%emt 0:01:12]} 12. cxd4 {[%emt 0:00:07]} Re8 {[%emt 0:00:49]} 13. Nf1 {[%emt 0:00:20]} Bf6 {[%emt 0:00:17]} 14. Ng3 {[%emt 0:00:28]} g6 {[%emt 0:04:31]} 15. Bh6 {[%emt 0:02:26]} Na5 {[%emt 0:01:00]} 16. Bc2 {[%emt 0:00:07] LiveBook: 30 Games} Nc4 {[%emt 0:01:51]} 17. b3 {[%emt 0:00:08]} Na3 {[%emt 0:00:11]} 18. Bd3 $11 {[%emt 0:00:09]} c5 {[%emt 0:00:29]} 19. Bf4 {[%emt 0:07:55]} Qb6 {[%emt 0:16:46]} 20. e5 {[%emt 0:00:55]} Bg7 {[%emt 0:05:05]} 21. Rc1 {[%emt 0:32:25]} c4 {[%emt 0:19:34]} 22. bxc4 {[%emt 0:02:27]} bxc4 {[%emt 0:00:26]} 23. Bxc4 {[%emt 0:04:08]} Nxc4 {[%emt 0:00:04]} 24. Rxc4 {[%emt 0:00:08]} dxe5 {[%emt 0:18:39]} 25. dxe5 {[%emt 0:09:42]} Nf8 {[%emt 0:11:10]} 26. Qd6 {[%emt 0:14:45]} Qa5 {[%emt 0:01:41]} 27. Qb4 {[%emt 0:00:47]} Qxb4 {[%emt 0:03:19]} 28. Rxb4 {[%emt 0:00:02]} Bxf3 {[%emt 0:00:10]} 29. gxf3 {[%emt 0:00:04]} Ne6 {[%emt 0:02:36]} 30. Nf1 {[%emt 0:06:55]} a5 {[%emt 0:09:38]} 31. Rc4 {[%emt 0:00:15]} Nxf4 {[%emt 0:02:07]} 32. Rxf4 {[%emt 0:00:01]} Rxe5 {[%emt 0:00:08]} 33. Rxe5 {[%emt 0:00:17]} Bxe5 {[%emt 0:00:03]} 34. Re4 {[%emt 0:00:33]} Bc3 {[%emt 0:01:48]} 35. Ne3 {[%emt 0:00:39]} Rd8 {[%emt 0:01:34]} 36. Rc4 {[%emt 0:00:55]} Bb4 {[%emt 0:00:46]} 37. Nc2 {[%emt 0:01:08]} Rd1+ {[%emt 0:00:28]} 38. Kg2 {[%emt 0:00:13]} Rc1 {[%emt 0:01:00]} 39. Ne3 {[%emt 0:01:49]} Ra1 {[%emt 0:00:16]} 40. Nc2 {[%emt 0:00:00]} Rc1 {[%emt 0:00:00]} 41. Ne3 {[%emt 0:00:42]} Rb1 {[%emt 0:11:40]} 42. Nd5 {[%emt 0:03:26]} Kg7 {[%emt 0:05:31]} 43. Nxb4 {[%emt 0:02:58]} Rxb4 {[%emt 0:07:25]} 44. Rc5 {[%emt 0:12:45]} Ra4 {[%emt 0:00:10]} 45. Rc2 {[%emt 0:00:17]} g5 {[%emt 0:04:38]} 46. Kg3 {[%emt 0:00:52]} Kg6 {[%emt 0:00:10]} 47. Rc6+ {[%emt 0:02:43]} f6 {[%emt 0:00:09]} 48. Rc2 {[%emt 0:00:02]} h5 {[%emt 0:01:30]} 49. Rd2 {[%emt 0:00:36]} Kf5 {[%emt 0:02:07]} 50. Re2 {[%emt 0:00:12]} h4+ {[%emt 0:00:12]} 51. Kg2 {[%emt 0:00:07]} Ra3 {[%emt 0:00:57]} 52. Rc2 {[%emt 0:01:18]} Ke5 {[%emt 0:00:58]} 53. Rc5+ {[%emt 0:01:28]} Kd6 {[%emt 0:00:20]} 54. Rc2 {[%emt 0:00:44]} Kd5 {[%emt 0:01:27]} 55. Rd2+ {[%emt 0:02:12]} Kc5 {[%emt 0:00:30]} 56. Re2 {[%emt 0:00:13]} Ra4 {[%emt 0:01:00]} 57. Re6 {[%emt 0:01:13]} Rf4 {[%emt 0:00:06]} 58. Re3 {[%emt 0:01:06]} Kb4 {[%emt 0:00:53]} 59. Kf1 {[%emt 0:01:52]} Rf5 {[%emt 0:00:14]} 60. Rb3+ {[%emt 0:00:28]} Ka4 {[%emt 0:00:46]} 61. Rd3 {[%emt 0:00:27]} Rc5 {[%emt 0:00:28]} 62. Rd6 {[%emt 0:00:12]} f5 {[%emt 0:00:39]} 63. f4 {[%emt 0:01:40]} g4 {[%emt 0:00:04]} 64. hxg4 {[%emt 0:03:44]} fxg4 {[%emt 0:00:06]} 65. f5 {[%emt 0:00:44]} h3 {[%emt 0:00:57]} 66. Kg1 {[%emt 0:01:07]} Rxf5 {[%emt 0:00:06]} 67. Rd4+ {[%emt 0:00:29]} Ka3 {[%emt 0:00:04]} 68. Rxg4 {[%emt 0:00:42]} h2+ {[%emt 0:00:09]} 69. Kh1 {[%emt 0:00:35]} Kxa2 {[%emt 0:01:46]} 70. f4 {[%emt 0:01:08]} a4 {[%emt 0:00:06]} 71. Kxh2 {[%emt 0:01:06]} a3 {[%emt 0:00:05]} 72. Kg3 {[%emt 0:01:11]} Kb3 {[%emt 0:00:52]} 73. Rg8 {[%emt 0:00:04]} Ra5 {[%emt 0:00:35]} 74. Rb8+ {[%emt 0:00:09]} Kc2 {[%emt 0:00:46]} 75. Rc8+ {[%emt 0:00:08]} Kb2 {[%emt 0:00:47]} 76. Rb8+ {[%emt 0:00:17]} Kc3 {[%emt 0:00:14]} 77. Rc8+ {[%emt 0:00:07]} Kb3 {[%emt 0:00:46]} 78. Rb8+ {[%emt 0:00:08]} Kc3 {[%emt 0:00:36]} 79. Rc8+ {[%emt 0:00:05]} Kb4 {[%emt 0:00:26]} 80. Rb8+ {[%emt 0:01:37]} Ka4 {[%emt 0:00:04]} 81. Rb1 {[%emt 0:03:23]} a2 {[%emt 0:00:05]} 82. Ra1 {[%emt 0:02:05]} Kb3 {[%emt 0:00:06]} 83. Kf3 {[%emt 0:02:06]} Kb2 {[%emt 0:00:27]} 84. Rxa2+ {[%emt 0:00:05]} Kxa2 {[%emt 0:00:28]} 85. Ke4 {[%emt 0:00:13]} Kb3 {[%emt 0:00:07]} 86. f5 {[%emt 0:00:02]} Kc4 {[%emt 0:00:48]} 87. f6 {[%emt 0:00:03]} Kc5 {[%emt 0:02:02]} 88. f7 {[%emt 0:00:39]} Ra8 {[%emt 0:00:02]} 89. Ke5 {[%emt 0:00:04]} Kc6 {[%emt 0:00:27]} 90. Ke6 {[%emt 0:00:06]} Rf8 {[%emt 0:00:18]} 91. Ke7 {[%emt 0:00:04]} Rxf7+ {[%emt 0:00:04]} 92. Kxf7 {[%emt 0:00:02]} 1/2-1/2

[Event "WYCC 2018 G18"]
[Site "Halkidiki"]
[Date "2018.10.27"]
[Round "8"]
[White "Afonasieva, Anna"]
[Black "Radeva, Viktoria"]
[Result "1/2-1/2"]
[ECO "D02"]
[WhiteElo "2245"]
[BlackElo "2163"]
[Annotator "NA"]
[PlyCount "162"]
[EventDate "2018.10.20"]
[EventType "swiss"]
[EventCountry "GRE"]
[SourceTitle "playchess.com"]
[Source "ChessBase"]
[SourceQuality "1"]
[TimeControl "40/5400+30:1800+30"]

1. d4 {[%emt 0:00:00]} d5 {[%emt 0:00:00]} 2. Nf3 {[%emt 0:00:00]} Nf6 {[%emt 0:00:00]} 3. c4 {[%emt 0:00:00]} e6 {[%emt 0:00:00]} 4. e3 {[%emt 0:00:00]} c5 {[%emt 0:00:00]} 5. Nc3 {[%emt 0:00:25]} Nc6 {[%emt 0:00:00]} 6. cxd5 {[%emt 0:01:51]} exd5 {[%emt 0:00:00]} 7. Be2 {[%emt 0:00:47]} Bd6 {[%emt 0:06:46]} 8. O-O {[%emt 0:03:42]} O-O {[%emt 0:01:12]} 9. dxc5 {[%emt 0:01:32]} Bxc5 {[%emt 0:00:06]} 10. b3 {[%emt 0:00:07]} a6 {[%emt 0:01:11]} 11. Bb2 {[%emt 0:00:50]} Be6 {[%emt 0:06:30] LiveBook: 46 Games} 12. Rc1 {[%emt 0:01:12]} Ba7 {[%emt 0:05:50]} 13. Na4 {[%emt 0:02:42]} Rc8 {[%emt 0:09:03]} 14. Nc5 $11 {[%emt 0:05:19]} Ne4 {[%emt 0:16:30]} 15. Nxe6 {[%emt 0:04:37]} fxe6 {[%emt 0:00:06]} 16. Bd3 {[%emt 0:02:17]} Ng5 {[%emt 0:08:44]} 17. Ne5 {[%emt 0:08:02]} Nxe5 {[%emt 0:02:09]} 18. Bxe5 {[%emt 0:00:05]} Rxc1 {[%emt 0:03:04]} 19. Qxc1 {[%emt 0:00:04]} Nf7 {[%emt 0:01:05]} 20. Bg3 {[%emt 0:06:28]} e5 {[%emt 0:04:59]} 21. Rd1 {[%emt 0:03:53]} d4 {[%emt 0:02:03]} 22. exd4 {[%emt 0:10:25]} exd4 {[%emt 0:06:40]} 23. Qf4 {[%emt 0:05:35]} Qe7 {[%emt 0:05:34]} 24. a4 {[%emt 0:09:55]} Nh6 {[%emt 0:04:46]} 25. Qe4 {[%emt 0:06:25]} Qxe4 {[%emt 0:00:11]} 26. Bxe4 {[%emt 0:00:03]} b5 {[%emt 0:08:20]} 27. axb5 {[%emt 0:00:38]} axb5 {[%emt 0:00:02]} 28. Bd3 {[%emt 0:00:25]} Nf5 {[%emt 0:01:45]} 29. Bxb5 {[%emt 0:02:36]} Nxg3 {[%emt 0:00:16]} 30. hxg3 {[%emt 0:00:07]} Rb8 {[%emt 0:02:01]} 31. Bc4+ {[%emt 0:00:31]} Kf8 {[%emt 0:00:14]} 32. Kf1 {[%emt 0:01:20]} Bc5 {[%emt 0:00:52]} 33. Ke2 {[%emt 0:01:02]} Ke7 {[%emt 0:01:06]} 34. Kd3 {[%emt 0:00:37]} Rf8 {[%emt 0:02:55]} 35. Re1+ {[%emt 0:02:27]} Kd7 {[%emt 0:00:50]} 36. Re2 {[%emt 0:00:30]} Rf6 {[%emt 0:01:09]} 37. Rb2 {[%emt 0:01:25]} Ba3 {[%emt 0:00:29]} 38. Ra2 {[%emt 0:07:45]} Bc5 {[%emt 0:00:07]} 39. Re2 {[%emt 0:00:12]} Kd6 {[%emt 0:00:27]} 40. f3 {[%emt 0:00:00]} Kd7 {[%emt 0:00:00]} 41. Re5 {[%emt 0:01:55]} Kd6 {[%emt 0:07:26]} 42. Rd5+ {[%emt 0:07:35]} Kc6 {[%emt 0:00:06]} 43. g4 {[%emt 0:00:17]} Rh6 {[%emt 0:15:05]} 44. Rg5 {[%emt 0:01:27]} g6 {[%emt 0:02:16]} 45. Bd5+ {[%emt 0:04:59]} Kb5 {[%emt 0:01:07]} 46. Re5 {[%emt 0:00:43]} Rh1 {[%emt 0:02:53]} 47. Re8 {[%emt 0:02:02]} Rd1+ {[%emt 0:00:51]} 48. Kc2 {[%emt 0:01:25]} Ra1 {[%emt 0:01:46]} 49. Rh8 {[%emt 0:15:53]} Bb4 {[%emt 0:02:22]} 50. Bc4+ {[%emt 0:01:01]} Kc5 {[%emt 0:00:08]} 51. Rxh7 {[%emt 0:00:52]} Ra2+ {[%emt 0:00:25]} 52. Kd3 {[%emt 0:00:11]} Rxg2 {[%emt 0:02:51]} 53. Rc7+ {[%emt 0:00:19]} Kd6 {[%emt 0:00:12]} 54. Rg7 {[%emt 0:00:17]} Ke5 {[%emt 0:00:34]} 55. Bg8 {[%emt 0:05:20]} Rf2 {[%emt 0:01:21]} 56. Kc4 {[%emt 0:02:16]} Bc3 {[%emt 0:00:55]} 57. Bd5 {[%emt 0:01:37]} Kf6 {[%emt 0:00:28]} 58. Rg8 {[%emt 0:00:39]} Re2 {[%emt 0:00:38]} 59. f4 {[%emt 0:01:38]} Bb2 {[%emt 0:00:21]} 60. Rf8+ {[%emt 0:00:15]} Ke7 {[%emt 0:00:36]} 61. Rf7+ {[%emt 0:00:05]} Ke8 {[%emt 0:00:15]} 62. Kd3 {[%emt 0:02:33]} Re3+ {[%emt 0:00:06]} 63. Kc2 {[%emt 0:00:35]} Re2+ {[%emt 0:00:54]} 64. Kd1 {[%emt 0:00:18]} Rf2 {[%emt 0:00:42]} 65. Bc4 {[%emt 0:00:41]} Bc3 {[%emt 0:00:23]} 66. f5 {[%emt 0:00:33]} gxf5 {[%emt 0:00:16]} 67. Rxf5 {[%emt 0:00:43]} Rxf5 {[%emt 0:00:45]} 68. gxf5 {[%emt 0:00:03]} Ke7 {[%emt 0:00:06]} 69. Ke2 {[%emt 0:00:09]} Kf6 {[%emt 0:00:12]} 70. Bd3 {[%emt 0:00:20]} Ke5 {[%emt 0:00:04]} 71. Kf3 {[%emt 0:01:02]} Bd2 {[%emt 0:00:13]} 72. Kg4 {[%emt 0:00:32]} Kf6 {[%emt 0:00:43]} 73. Kh5 {[%emt 0:00:29]} Bc3 {[%emt 0:00:20]} 74. Kh4 {[%emt 0:01:03]} Be1+ {[%emt 0:00:14]} 75. Kg4 {[%emt 0:00:20]} Bd2 {[%emt 0:00:08]} 76. Kf3 {[%emt 0:01:04]} Ke5 {[%emt 0:00:05]} 77. Bb1 {[%emt 0:00:05]} Ba5 {[%emt 0:00:46]} 78. Ke2 {[%emt 0:00:13]} Bc3 {[%emt 0:00:31]} 79. Bc2 {[%emt 0:00:44]} Ba5 {[%emt 0:00:10]} 80. Bd3 {[%emt 0:00:43]} Bc3 {[%emt 0:00:52]} 81. Kf3 {[%emt 0:00:44]} Bd2 {[%emt 0:00:39] Ke4+} 1/2-1/2

[Event "WYCC 2018 G18"]
[Site "Halkidiki"]
[Date "2018.10.27"]
[Round "8"]
[White "Chitlange Sakshi"]
[Black "Janiashvili, Mariami"]
[Result "1/2-1/2"]
[ECO "A42"]
[WhiteElo "2237"]
[BlackElo "2081"]
[Annotator "NA"]
[PlyCount "178"]
[EventDate "2018.10.20"]
[EventType "swiss"]
[EventCountry "GRE"]
[SourceTitle "playchess.com"]
[Source "ChessBase"]
[SourceQuality "1"]
[TimeControl "40/5400+30:1800+30"]

1. d4 {[%emt 0:00:00]} g6 {[%emt 0:00:00]} 2. c4 {[%emt 0:00:00]} Bg7 {[%emt 0:00:00]} 3. Nc3 {[%emt 0:00:00]} d6 {[%emt 0:00:00]} 4. e4 {[%emt 0:00:08]} e5 {[%emt 0:00:00]} 5. d5 {[%emt 0:00:04]} Nd7 {[%emt 0:00:08]} 6. Bd3 {[%emt 0:00:04]} a5 {[%emt 0:00:28]} 7. Nge2 {[%emt 0:01:14]} Nc5 {[%emt 0:07:54] LiveBook: 7 Partien} 8. Bc2 {[%emt 0:01:20]} Ne7 {[%emt 0:01:03]} 9. O-O {[%emt 0:05:07]} O-O {[%emt 0:00:42]} 10. Rb1 {[%emt 0:00:49]} f5 {[%emt 0:01:44]} 11. exf5 {[%emt 0:00:05]} Nxf5 $11 {[%emt 0:05:18]} 12. Ne4 {[%emt 0:04:55]} Nxe4 {[%emt 0:06:24]} 13. Bxe4 {[%emt 0:00:08]} Qh4 {[%emt 0:02:50]} 14. Qd3 {[%emt 0:04:29]} Nh6 {[%emt 0:08:31]} 15. f3 {[%emt 0:05:28]} Bd7 {[%emt 0:16:04]} 16. Be3 {[%emt 0:02:32]} Qe7 {[%emt 0:01:49]} 17. Rbc1 {[%emt 0:08:34]} b6 {[%emt 0:00:32]} 18. b3 {[%emt 0:07:58]} Nf5 {[%emt 0:00:12]} 19. Bxf5 {[%emt 0:05:51]} Bxf5 {[%emt 0:04:19]} 20. Qd2 {[%emt 0:00:05]} Bd7 {[%emt 0:11:32]} 21. Ng3 {[%emt 0:00:56]} Qh4 {[%emt 0:05:00]} 22. Ne4 {[%emt 0:13:30]} h6 {[%emt 0:00:19]} 23. Rfe1 {[%emt 0:10:15]} Kh7 {[%emt 0:02:07]} 24. a3 {[%emt 0:00:51]} g5 {[%emt 0:06:50]} 25. Ng3 {[%emt 0:04:35]} g4 {[%emt 0:03:26]} 26. Qd3+ {[%emt 0:06:38]} Kg8 {[%emt 0:01:20]} 27. Qe4 {[%emt 0:00:13]} Rf7 {[%emt 0:02:28]} 28. b4 {[%emt 0:04:10]} axb4 {[%emt 0:01:22]} 29. axb4 {[%emt 0:00:01]} Ra2 {[%emt 0:07:56]} 30. Ra1 {[%emt 0:04:47]} Rb2 {[%emt 0:03:53]} 31. Reb1 {[%emt 0:02:35]} Rxb1+ {[%emt 0:00:36]} 32. Rxb1 {[%emt 0:00:05]} Qxg3 {[%emt 0:00:39]} 33. hxg3 Bf5 34. Qxf5 {[%emt 0:07:50]} Rxf5 {[%emt 0:00:01]} 35. fxg4 {[%emt 0:00:06]} Rf7 {[%emt 0:01:18]} 36. Rf1 {[%emt 0:02:46]} Rxf1+ {[%emt 0:00:44]} 37. Kxf1 {[%emt 0:00:01]} Kf7 {[%emt 0:00:12]} 38. Ke2 {[%emt 0:00:10]} Kg6 {[%emt 0:00:35]} 39. Kd3 {[%emt 0:00:47]} Bf6 {[%emt 0:00:35]} 40. Ke4 {[%emt 0:00:00]} Be7 {[%emt 0:00:00]} 41. Bd2 {[%emt 0:06:19]} Bg5 {[%emt 0:03:36]} 42. Be1 {[%emt 0:01:43]} Bf6 {[%emt 0:02:25]} 43. Bf2 {[%emt 0:06:47]} Be7 {[%emt 0:02:31]} 44. Be3 {[%emt 0:01:17]} Bg5 {[%emt 0:00:55]} 45. Bf2 {[%emt 0:01:04]} Be7 {[%emt 0:01:32]} 46. Bg1 {[%emt 0:01:21]} Kg5 {[%emt 0:00:49]} 47. Kf3 {[%emt 0:02:34]} Kg6 {[%emt 0:00:31]} 48. Bf2 {[%emt 0:00:26]} Kg5 {[%emt 0:00:30]} 49. Be1 {[%emt 0:00:07]} Kg6 {[%emt 0:00:14]} 50. Bc3 {[%emt 0:00:24]} Bf6 {[%emt 0:06:11]} 51. Ke4 {[%emt 0:00:20]} Kg5 {[%emt 0:00:48]} 52. Bd2+ {[%emt 0:00:04]} Kg6 {[%emt 0:02:41]} 53. Kd3 {[%emt 0:03:20]} Bg5 {[%emt 0:03:14]} 54. Be1 {[%emt 0:01:03]} Bd8 {[%emt 0:07:55]} 55. Bf2 {[%emt 0:02:26]} Kg5 {[%emt 0:01:43]} 56. Be3+ {[%emt 0:00:06]} Kxg4 {[%emt 0:00:28]} 57. Bxh6 {[%emt 0:00:05]} Kxg3 {[%emt 0:01:07]} 58. Bf8 {[%emt 0:00:45]} Kxg2 {[%emt 0:00:33]} 59. Ke4 {[%emt 0:00:03]} Kg3 {[%emt 0:00:36]} 60. c5 {[%emt 0:00:41]} bxc5 {[%emt 0:00:33]} 61. bxc5 {[%emt 0:00:02]} dxc5 {[%emt 0:00:13]} 62. Bxc5 {[%emt 0:00:15]} Bf6 {[%emt 0:00:34]} 63. Kf5 {[%emt 0:02:26]} Bh8 {[%emt 0:00:26]} 64. Bb6 {[%emt 0:03:32]} Bg7 {[%emt 0:02:25]} 65. Bxc7 {[%emt 0:00:09]} Bf8 {[%emt 0:00:01]} 66. Kxe5 {[%emt 0:01:39]} Kf3 {[%emt 0:00:20]} 67. Bd6 {[%emt 0:00:55]} Bg7+ {[%emt 0:00:19]} 68. Kf5 {[%emt 0:00:24]} Bh6 {[%emt 0:00:38]} 69. Be7 {[%emt 0:00:29]} Bf4 {[%emt 0:00:29]} 70. Bf6 {[%emt 0:00:25]} Be3 {[%emt 0:01:00]} 71. d6 {[%emt 0:00:22]} Bc5 {[%emt 0:00:17]} 72. d7 {[%emt 0:00:06]} Bb6 {[%emt 0:00:02]} 73. Ke5 {[%emt 0:05:14]} Kg4 {[%emt 0:00:22]} 74. Kd6 {[%emt 0:00:47]} Kf5 {[%emt 0:00:23]} 75. Bh4 {[%emt 0:00:49]} Ba5 {[%emt 0:00:18]} 76. Ke7 {[%emt 0:00:37]} Bb6 {[%emt 0:00:27]} 77. Ke8 {[%emt 0:00:07]} Ke6 {[%emt 0:00:22]} 78. Bf2 {[%emt 0:00:25]} Bc7 {[%emt 0:00:09]} 79. Bc5 {[%emt 0:00:04]} Ba5 {[%emt 0:00:25]} 80. Be7 {[%emt 0:00:28]} Bb6 {[%emt 0:00:14]} 81. Bd8 {[%emt 0:00:05]} Be3 {[%emt 0:00:26]} 82. Bc7 {[%emt 0:01:30]} Bg5 {[%emt 0:00:04]} 83. Bf4 {[%emt 0:00:17]} Bh4 {[%emt 0:00:05]} 84. Bg3 {[%emt 0:00:29]} Bg5 {[%emt 0:00:04]} 85. Bc7 {[%emt 0:00:05]} Bh4 {[%emt 0:00:28]} 86. Bd8 {[%emt 0:00:05]} Be1 {[%emt 0:00:14]} 87. Bg5 {[%emt 0:00:30]} Ba5 {[%emt 0:00:03]} 88. Bd2 {[%emt 0:00:20]} Bb6 {[%emt 0:00:08]} 89. Bb4 {[%emt 0:00:34]} Bc7 {[%emt 0:00:12]} 1/2-1/2